fUSD/lending_fUSD_20250806
["ID","MTS","AMOUNT","RATE_DAILY","PERIOD"]
[377572480,1754445085619,-400.0,0.00036164,14]
[377572481,1754445085629,-400.0,0.00036164,14]
[377572482,1754445085638,-556.12,0.00036164,14]
[377572483,1754445085648,-400.0,0.00036164,14]
[377572484,1754445085658,-554.87,0.00036164,14]
[377572485,1754445085668,-400.0,0.00036164,14]
[377572486,1754445085678,-400.0,0.00036164,14]
[377572487,1754445085687,-400.0,0.00036164,14]
[377572488,1754445085697,-400.0,0.00036164,14]
[377572489,1754445085706,-400.0,0.00036164,14]
[377572490,1754445085715,-400.0,0.00036164,14]
[377572491,1754445085725,-400.0,0.00036164,14]
[377572492,1754445085737,-400.0,0.00036164,14]
[377572493,1754445085746,-400.0,0.00036164,14]
[377572494,1754445085755,-400.0,0.00036164,14]
[377572495,1754445085765,-1341.76,0.00036164,14]
[377572496,1754445085774,-776.19,0.00036164,14]
[377572497,1754445085784,-400.0,0.00036164,14]
[377572498,1754445085793,-400.0,0.00036164,14]
[377572499,1754445085805,-470.14,0.00036164,14]
[377572500,1754445085815,-400.0,0.00036164,14]
[377572501,1754445085827,-400.0,0.00036164,14]
[377572502,1754445085838,-1323.57,0.00036164,14]
[377572503,1754445085849,-400.0,0.00036164,14]
[377572504,1754445085858,-1503.27,0.00036164,14]
[377572505,1754445085870,-400.0,0.00036164,14]
[377572506,1754445085880,-1141.48,0.00036164,14]
[377572507,1754445085892,-1119.61,0.00036164,14]
[377572508,1754445085905,-1078.09,0.00036164,14]
[377572509,1754445085916,-400.0,0.00036164,14]
[377572510,1754445085927,-400.93275927,0.00036164,14]
[377572511,1754445085937,-400.0,0.00036164,14]
[377572512,1754445085947,-400.0,0.00036164,14]
[377572513,1754445085958,-400.0,0.00036164,14]
[377572514,1754445085969,-400.0,0.00036164,14]
[377572515,1754445085980,-400.0,0.00036164,14]
[377572516,1754445085990,-1713.36,0.00036164,14]
[377572517,1754445086000,-589.39,0.00036164,14]
[377572518,1754445086009,-904.53,0.00036164,14]
[377572519,1754445086019,-2898.63,0.00036164,14]
[377572520,1754445086029,-400.0,0.00036164,14]
[377572521,1754445086039,-400.0,0.00036164,14]
[377572522,1754445086048,-400.79367499,0.00036164,14]
[377572523,1754445086059,-400.0,0.00036164,14]
[377572524,1754445086068,-400.0,0.00036164,14]
[377572525,1754445086085,-400.0,0.00036164,14]
[377572526,1754445086100,-1559.97,0.00036164,14]
[377572527,1754445086109,-400.0,0.00036164,14]
[377572528,1754445086120,-1845.55,0.00036164,14]
[377572529,1754445086131,-2002.24,0.00036164,14]
[377572530,1754445086140,-2734.57,0.00036164,14]
[377572531,1754445086152,-400.0,0.00036164,14]
[377572532,1754445086162,-424.18,0.00036164,14]
[377572533,1754445086173,-400.0,0.00036164,14]
[377572534,1754445086184,-400.0,0.00036164,14]
[377572535,1754445086194,-521.33,0.00036164,14]
[377572536,1754445086204,-400.0,0.00036164,14]
[377572537,1754445086215,-837.62,0.00036164,14]
[377572538,1754445086225,-400.0,0.00036164,14]
[377572539,1754445086235,-400.0,0.00036164,14]
[377572540,1754445086246,-710.32,0.00036164,14]
[377572541,1754445086256,-400.0,0.00036164,14]
[377572542,1754445086266,-1501.67,0.00036164,14]
[377572543,1754445086276,-400.0,0.00036164,14]
[377572544,1754445086286,-1946.53,0.00036164,14]
[377572545,1754445086296,-400.0,0.00036164,14]
[377572546,1754445086307,-917.13,0.00036164,14]
[377572547,1754445086317,-400.0,0.00036164,14]
[377572548,1754445086327,-400.0,0.00036164,14]
[377572549,1754445086337,-400.0,0.00036164,14]
[377572550,1754445086350,-400.0,0.00036164,14]
[377572551,1754445086360,-400.0,0.00036164,14]
[377572552,1754445086370,-400.0,0.00036164,14]
[377572553,1754445086380,-2201.64,0.00036164,14]
[377572554,1754445086391,-400.0,0.00036164,14]
[377572555,1754445086408,-789.36,0.00036164,14]
[377572556,1754445086420,-400.0,0.00036164,14]
[377572557,1754445086431,-1035.11,0.00036164,14]
[377572558,1754445086441,-400.0,0.00036164,14]
[377572559,1754445086451,-400.0,0.00036164,14]
[377572560,1754445086461,-400.0,0.00036164,14]
[377572561,1754445086472,-400.0,0.00036164,14]
[377572562,1754445086482,-400.0,0.00036164,14]
[377572563,1754445086493,-651.23,0.00036164,14]
[377572564,1754445086504,-400.0,0.00036164,14]
[377572565,1754445086515,-2099.0,0.00036164,14]
[377572566,1754445086526,-400.0,0.00036164,14]
[377572567,1754445086536,-592.11,0.00036164,14]
[377572568,1754445086547,-422.23,0.00036164,14]
[377572569,1754445086558,-400.0,0.00036164,14]
[377572570,1754445086569,-400.0,0.00036164,14]
[377572571,1754445086580,-400.0,0.00036164,14]
[377572572,1754445086591,-400.0,0.00036164,14]
[377572573,1754445086602,-1646.02,0.00036164,14]
[377572574,1754445086612,-1797.61,0.00036164,14]
[377572575,1754445086629,-1194.38,0.00036164,14]
[377572576,1754445086641,-400.0,0.00036164,14]
[377572577,1754445086652,-896.94,0.00036164,14]
[377572578,1754445086663,-1788.93,0.00036164,14]
[377572579,1754445086674,-400.0,0.00036164,14]
[377572580,1754445086684,-701.55,0.00036164,14]
[377572581,1754445086695,-400.0,0.00036164,14]
[377572582,1754445086705,-768.55,0.00036164,14]
[377572583,1754445086716,-400.0,0.00036164,14]
[377572584,1754445086726,-1062.63,0.00036164,14]
[377572585,1754445086737,-985.9,0.00036164,14]
[377572586,1754445086747,-947.7,0.00036164,14]
[377572587,1754445086758,-400.0,0.00036164,14]
[377572588,1754445086769,-1163.17,0.00036164,14]
[377572589,1754445086779,-1794.14,0.00036164,14]
[377572590,1754445086794,-400.99701555,0.00036164,14]
[377572591,1754445086806,-739.15,0.00036164,14]
[377572592,1754445086822,-400.0,0.00036164,14]
[377572593,1754445086839,-1094.35,0.00036164,14]
[377572594,1754445086850,-1344.81,0.00036164,14]
[377572595,1754445087288,-400.0,0.00036164,14]
[377572596,1754445087312,-446.26,0.00036164,14]
[377572597,1754445087322,-405.78,0.00036164,14]
[377572598,1754445087331,-967.91,0.00036164,14]
[377572599,1754445087341,-401.26502734,0.00036164,14]
[377572600,1754445087350,-1173.64,0.00036164,14]
[377572601,1754445087360,-2109.91,0.00036164,14]
[377572602,1754445087369,-2203.77,0.00036164,14]
[377572603,1754445087379,-811.64,0.00036164,14]
[377572604,1754445087393,-400.0,0.00036164,14]
[377572605,1754445087403,-400.0,0.00036164,14]
[377572606,1754445087413,-400.0,0.00036164,14]
[377572607,1754445087429,-400.0,0.00036164,14]
[377572608,1754445087448,-400.0,0.00036164,14]
[377572609,1754445087466,-400.0,0.00036164,14]
[377572610,1754445087486,-400.0,0.00036164,14]
[377572611,1754445087502,-400.0,0.00036164,14]
[377572612,1754445087514,-400.0,0.00036164,14]
[377572613,1754445087525,-400.0,0.00036164,14]
[377572614,1754445087536,-400.0,0.00036164,14]
[377572615,1754445087547,-469.16,0.00036164,14]
[377572616,1754445087560,-923.75,0.00036164,14]
[377572617,1754445087571,-400.0,0.00036164,14]
[377572618,1754445087583,-400.0,0.00036164,14]
[377572619,1754445087594,-380.19245659,0.00036164,14]
[377572620,1754445087605,-400.0,0.00036164,14]
[377572621,1754445087616,-554.71,0.00036164,14]
[377572622,1754445087628,-604.15,0.00036164,14]
[377572623,1754445087639,-494.91,0.00036164,14]
[377572624,1754445087653,-400.0,0.00036164,14]
[377572625,1754445087666,-666.51,0.00036164,14]
[377572626,1754445087684,-400.0,0.00036164,14]
[377572627,1754445087694,-400.0,0.00036164,14]
[377572628,1754445087703,-400.0,0.00036164,14]
[377572629,1754445087713,-400.0,0.00036164,14]
[377572630,1754445087723,-1810.36,0.00036164,14]
[377572631,1754445087734,-400.0,0.00036164,14]
[377572632,1754445087745,-937.59,0.00036164,14]
[377572633,1754445087754,-400.0,0.00036164,14]
[377572634,1754445087765,-1765.04,0.00036164,14]
[377572635,1754445087775,-401.26797536,0.00036164,14]
[377572636,1754445087786,-662.56,0.00036164,14]
[377572637,1754445087796,-401.26271476,0.00036164,14]
[377572638,1754445087810,-1884.93,0.00036164,14]
[377572639,1754445087821,-2173.18,0.00036164,14]
[377572640,1754445087832,-426.54,0.00036164,14]
[377572641,1754445087842,-400.0,0.00036164,14]
[377572642,1754445087851,-400.0,0.00036164,14]
[377572643,1754445087861,-400.0,0.00036164,14]
[377572644,1754445087872,-1051.98,0.00036164,14]
[377572645,1754445087882,-171.14166453,0.00036164,14]
[377572646,1754445087892,-400.0,0.00036164,14]
[377572647,1754445087902,-638.49,0.00036164,14]
[377572648,1754445087912,-400.0,0.00036164,7]
[377572649,1754445087922,-400.0,0.00036164,14]
[377572650,1754445087932,-400.0,0.00036164,14]
[377572651,1754445087942,-505.05,0.00036164,14]
[377572652,1754445087951,-402.18814074,0.00036164,14]
[377572653,1754445087961,-823.45,0.00036164,14]
[377572654,1754445087971,-400.0,0.00036164,14]
[377572655,1754445087980,-885.84,0.00036164,14]
[377572656,1754445087990,-716.14,0.00036164,14]
[377572657,1754445087999,-1446.43,0.00036164,14]
[377572658,1754445088009,-1186.37,0.00036164,14]
[377572659,1754445088019,-992.97,0.00036164,14]
[377572660,1754445088028,-400.0,0.00036164,14]
[377572661,1754445088038,-1008.6,0.00036164,14]
[377572662,1754445088047,-400.67515044,0.00036164,14]
[377572663,1754445088061,-400.0,0.00036164,14]
[377572664,1754445088071,-400.0,0.00036164,14]
[377572665,1754445088081,-1537.35,0.00036164,14]
[377572666,1754445088092,-763.76,0.00036164,14]
[377572667,1754445088102,-594.52,0.00036164,14]
[377572668,1754445088112,-620.62,0.00036164,14]
[377572669,1754445088123,-400.0,0.00036164,14]
[377572670,1754445088134,-2033.15,0.00036164,14]
[377572671,1754445088144,-607.47,0.00036164,14]
[377572672,1754445088155,-400.0,0.00036164,14]
[377572673,1754445088165,-400.0,0.00036164,14]
[377572674,1754445088175,-475.13,0.00036164,14]
[377572675,1754445088191,-1085.12,0.00036164,14]
[377572676,1754445088201,-490.52020771,0.00036164,14]
[377572677,1754445088210,-1246.56,0.00036164,14]
[377572678,1754445088220,-1188.02,0.00036164,14]
[377572679,1754445088229,-400.0,0.00036164,14]
[377572680,1754445088239,-860.58,0.00036164,14]
[377572681,1754445088249,-1141.08,0.00036164,14]
[377572682,1754445088260,-2113.04,0.00036164,14]
[377572683,1754445088269,-1843.9,0.00036164,14]
[377572684,1754445088279,-400.0,0.00036164,14]
[377572685,1754445088289,-400.0,0.00036164,14]
[377572686,1754445088300,-909.95,0.00036164,14]
[377572687,1754445088314,-400.0,0.00036164,14]
[377572688,1754445088325,-406.74224227,0.00036164,14]
[377572689,1754445088335,-400.0,0.00036164,14]
[377572690,1754445088345,-400.0,0.00036164,14]
[377572691,1754445088355,-3266.12,0.00036164,14]
[377572692,1754445088365,-1391.51,0.00036164,14]
[377572693,1754445088375,-719.58,0.00036164,14]
[377572694,1754445088385,-1913.41,0.00036164,14]
[377572695,1754445088395,-400.0,0.00036164,14]
[377572696,1754445088405,-400.73040507,0.00036164,14]
[377572697,1754445088415,-511.19,0.00036164,14]
[377572698,1754445088426,-400.0,0.00036164,14]
[377572699,1754445088437,-400.0,0.00036164,14]
[377572700,1754445088447,-400.0,0.00036164,14]
[377572701,1754445088458,-503.5,0.00036164,14]
[377572702,1754445088467,-400.0,0.00036164,14]
[377572703,1754445088477,-3399.61,0.00036164,14]
[377572704,1754445088486,-400.0,0.00036164,14]
[377572705,1754445088496,-400.0,0.00036164,14]
[377572706,1754445088505,-1788.17,0.00036164,14]
[377572707,1754445088514,-488.85,0.00036164,14]
[377572708,1754445088523,-1956.52,0.00036164,14]
[377572709,1754445088533,-400.0,0.00036164,14]
[377572710,1754445088543,-263.58998336,0.00036164,14]
[377572711,1754445088552,-1411.45,0.00036164,14]
[377572712,1754445088563,-400.0,0.00036164,14]
[377572713,1754445088573,-400.0,0.00036164,14]
[377572714,1754445088582,-647.61,0.00036164,14]
[377572715,1754445088592,-400.0,0.00036164,14]
[377572716,1754445088602,-400.0,0.00036164,14]
[377572717,1754445088612,-400.0,0.00036164,14]
[377572718,1754445088623,-546.47,0.00036164,14]
[377572719,1754445088632,-1985.89,0.00036164,14]
[377572720,1754445088642,-289.48668024,0.00036164,14]
[377572721,1754445088651,-690.81,0.00036164,14]
[377572722,1754445088660,-985.67,0.00036164,14]
[377572723,1754445088670,-400.0,0.00036164,14]
[377572724,1754445088679,-531.05,0.00036164,14]
[377572725,1754445088689,-2195.08,0.00036164,14]
[377572726,1754445088698,-959.45,0.00036164,14]
[377572727,1754445088709,-400.0,0.00036164,14]
[377572728,1754445088719,-672.57,0.00036164,14]
[377572729,1754445088728,-400.0,0.00036164,14]
[377572730,1754445088738,-1247.88,0.00036164,14]
[377572731,1754445088747,-585.25,0.00036164,14]
[377572732,1754445088757,-400.0,0.00036164,14]
[377572733,1754445088766,-400.0,0.00036164,14]
[377572734,1754445088776,-2434.27,0.00036164,14]
[377572735,1754445088786,-400.0,0.00036164,14]
[377572736,1754445088795,-400.0,0.00036164,14]
[377572737,1754445088806,-1651.3,0.00036164,14]
[377572738,1754445088817,-1867.25,0.00036164,14]
[377572739,1754445088830,-1041.88,0.00036164,14]
[377572740,1754445088843,-1301.09,0.00036164,14]
[377572741,1754445088852,-400.0,0.00036164,14]
[377572742,1754445088861,-400.0,0.00036164,14]
[377572743,1754445088872,-400.0,0.00036164,14]
[377572744,1754445088882,-404.9,0.00036164,14]
[377572745,1754445088891,-1903.84,0.00036164,14]
[377572746,1754445088901,-519.19,0.00036164,14]
[377572747,1754445088913,-400.0,0.00036164,14]
[377572748,1754445088922,-500.64,0.00036164,14]
[377572749,1754445088931,-400.0,0.00036164,14]
[377572750,1754445088941,-511.74,0.00036164,14]
[377572751,1754445088950,-400.0,0.00036164,14]
[377572752,1754445088960,-627.73,0.00036164,14]
[377572753,1754445088969,-400.0,0.00036164,14]
[377572754,1754445088979,-400.0,0.00036164,14]
[377572755,1754445088988,-1050.13,0.00036164,14]
[377572756,1754445088998,-400.0,0.00036164,14]
[377572757,1754445089007,-851.23,0.00036164,14]
[377572758,1754445089017,-1371.38,0.00036164,14]
[377572759,1754445089027,-400.0,0.00036164,14]
[377572760,1754445089037,-916.61,0.00036164,14]
[377572761,1754445089046,-653.65,0.00036164,14]
[377572762,1754445089056,-1116.51,0.00036164,14]
[377572763,1754445089066,-732.25,0.00036164,14]
[377572764,1754445089076,-325.86063753,0.00036164,14]
[377572765,1754445089086,-400.0,0.00036164,14]
[377572766,1754445089095,-475.92,0.00036164,14]
[377572767,1754445089104,-402.21972859,0.00036164,14]
[377572768,1754445089114,-770.34,0.00036164,14]
[377572769,1754445089124,-591.46,0.00036164,14]
[377572770,1754445089134,-400.0,0.00036164,14]
[377572771,1754445089144,-1462.8,0.00036164,14]
[377572772,1754445089153,-400.0,0.00036164,14]
[377572773,1754445089163,-1931.17,0.00036164,14]
[377572774,1754445089173,-1009.21,0.00036164,14]
[377572775,1754445089182,-400.0,0.00036164,14]
[377572776,1754445089192,-523.26,0.00036164,14]
[377572777,1754445089201,-2930.75,0.00036164,14]
[377572778,1754445089211,-1049.79,0.00036164,14]
[377572779,1754445089220,-400.0,0.00036164,14]
[377572780,1754445089230,-498.81,0.00036164,14]
[377572781,1754445089239,-434.13,0.00036164,14]
[377572782,1754445089249,-1830.96,0.00036164,14]
[377572783,1754445089258,-400.0,0.00036164,14]
[377572784,1754445089268,-1265.66,0.00036164,14]
[377572785,1754445089277,-151.0,0.00036164,7]
[377572786,1754445089286,-151.0,0.00036164,7]
[377572787,1754445089295,-400.0,0.00036164,14]
[377572788,1754445089307,-1290.8,0.00036164,14]
[377572789,1754445089317,-400.0,0.00036164,14]
[377572790,1754445089326,-1113.65,0.00036164,14]
[377572791,1754445089336,-400.0,0.00036164,14]
[377572792,1754445089346,-400.0,0.00036164,14]
[377572793,1754445089357,-400.0,0.00036164,14]
[377572794,1754445089367,-151.0,0.00036164,7]
[377572795,1754445089376,-151.0,0.00036164,7]
[377572796,1754445089385,-400.0,0.00036164,14]
[377572797,1754445089394,-1132.02,0.00036164,14]
[377572798,1754445089404,-400.0,0.00036164,14]
[377572799,1754445089413,-400.0,0.00036164,14]
[377572800,1754445089422,-400.0,0.00036164,14]
[377572801,1754445089433,-400.0,0.00036164,14]
[377572802,1754445089444,-880.55,0.00036164,14]
[377572803,1754445089453,-632.81,0.00036164,14]
[377572804,1754445089465,-1935.98,0.00036164,14]
[377572805,1754445089475,-565.44,0.00036164,14]
[377572806,1754445089484,-432.07,0.00036164,14]
[377572807,1754445089493,-2058.7,0.00036164,14]
[377572808,1754445089503,-2459.29,0.00036164,14]
[377572809,1754445089512,-952.79,0.00036164,14]
[377572810,1754445089522,-400.0,0.00036164,14]
[377572811,1754445089531,-400.0,0.00036164,14]
[377572812,1754445089541,-400.0,0.00036164,14]
[377572813,1754445089550,-400.0,0.00036164,14]
[377572814,1754445089563,-400.0,0.00036164,14]
[377572815,1754445089572,-400.0,0.00036164,14]
[377572816,1754445089583,-651.88,0.00036164,14]
[377572817,1754445089592,-400.0,0.00036164,14]
[377572818,1754445089602,-1468.29,0.00036164,14]
[377572819,1754445089611,-1615.6,0.00036164,14]
[377572820,1754445089621,-400.0,0.00036164,14]
[377572821,1754445089632,-1200.18,0.00036164,14]
[377572822,1754445089643,-620.14,0.00036164,14]
[377572823,1754445089654,-890.38,0.00036164,14]
[377572824,1754445089664,-1559.95,0.00036164,14]
[377572825,1754445089673,-554.46,0.00036164,14]
[377572826,1754445089683,-400.0,0.00036164,14]
[377572827,1754445089692,-3323.49,0.00036164,14]
[377572828,1754445089701,-740.32,0.00036164,14]
[377572829,1754445089711,-1792.71,0.00036164,14]
[377572830,1754445089721,-401.02187439,0.00036164,14]
[377572831,1754445089731,-400.0,0.00036164,14]
[377572832,1754445089740,-400.0,0.00036164,14]
[377572833,1754445089750,-670.67,0.00036164,14]
[377572834,1754445089759,-400.0,0.00036164,14]
[377572835,1754445089769,-400.0,0.00036164,14]
[377572836,1754445089779,-423.31,0.00036164,14]
[377572837,1754445089789,-400.0,0.00036164,14]
[377572838,1754445089798,-400.0,0.00036164,14]
[377572839,1754445089811,-400.0,0.00036164,14]
[377572840,1754445089821,-151.0,0.00036164,7]
[377572841,1754445089832,-151.0,0.00036164,7]
[377572842,1754445089845,-629.22,0.00036164,14]
[377572843,1754445089855,-1278.36,0.00036164,14]
[377572844,1754445089864,-605.83,0.00036164,14]
[377572845,1754445089874,-1742.73,0.00036164,14]
[377572846,1754445089883,-400.0,0.00036164,14]
[377572847,1754445089893,-840.63,0.00036164,14]
[377572848,1754445089904,-169.01669397,0.00036164,14]
[377572849,1754445089914,-151.0,0.00036164,7]
[377572850,1754445089924,-2115.6,0.00036164,14]
[377572851,1754445089934,-400.0,0.00036164,14]
[377572852,1754445089945,-2121.86,0.00036164,14]
[377572853,1754445089955,-1594.04,0.00036164,14]
[377572854,1754445089965,-400.0,0.00036164,14]
[377572855,1754445089975,-1906.92,0.00036164,14]
[377572856,1754445089984,-400.0,0.00036164,14]
[377572857,1754445089994,-400.0,0.00036164,14]
[377572858,1754445090004,-2029.65,0.00036164,14]
[377572859,1754445090014,-1284.54,0.00036164,14]
[377572860,1754445090024,-400.0,0.00036164,14]
[377572861,1754445090033,-639.18,0.00036164,14]
[377572862,1754445090043,-400.0,0.00036164,14]
[377572863,1754445090053,-867.89,0.00036164,14]
[377572864,1754445090063,-400.0,0.00036164,14]
[377572865,1754445090073,-768.12,0.00036164,14]
[377572866,1754445090082,-1728.43,0.00036164,14]
[377572867,1754445090092,-986.68,0.00036164,14]
[377572868,1754445090101,-400.0,0.00036164,2]
[377572869,1754445090111,-400.0,0.00036164,14]
[377572870,1754445090120,-1056.28,0.00036164,14]
[377572871,1754445090130,-1087.98,0.00036164,14]
[377572872,1754445090139,-1331.35,0.00036164,14]
[377572873,1754445090149,-818.29,0.00036164,2]
[377572874,1754445090159,-400.0,0.00036164,14]
[377572875,1754445090170,-400.0,0.00036164,14]
[377572876,1754445090179,-1671.93,0.00036164,14]
[377572877,1754445090189,-400.0,0.00036164,14]
[377572878,1754445090198,-915.29,0.00036164,14]
[377572879,1754445090208,-401.06334603,0.00036164,14]
[377572880,1754445090218,-987.79,0.00036164,14]
[377572881,1754445090227,-400.0,0.00036164,14]
[377572882,1754445090237,-400.0,0.00036164,2]
[377572883,1754445090247,-1706.07,0.00036164,14]
[377572884,1754445090256,-400.0,0.00036164,14]
[377572885,1754445090266,-400.0,0.00036164,14]
[377572886,1754445090276,-400.0,0.00036164,14]
[377572887,1754445090286,-4680.28,0.00036164,14]
[377572888,1754445090295,-400.0,0.00036164,14]
[377572889,1754445090305,-2398.75,0.00036164,14]
[377572890,1754445090314,-1209.91,0.00036164,14]
[377572891,1754445090324,-787.03,0.00036164,14]
[377572892,1754445090334,-1250.29,0.00036164,14]
[377572893,1754445090344,-850.29,0.00036164,14]
[377572894,1754445090354,-276.93997762,0.00036164,14]
[377572895,1754445090363,-400.0,0.00036164,14]
[377572896,1754445090372,-411.23612413,0.00036164,14]
[377572897,1754445090382,-400.0,0.00036164,14]
[377572898,1754445090391,-453.59,0.00036164,14]
[377572899,1754445090400,-2065.74,0.00036164,14]
[377572900,1754445090410,-400.0,0.00036164,14]
[377572901,1754445090420,-400.0,0.00036164,14]
[377572902,1754445090429,-402.4071943,0.00036164,14]
[377572903,1754445090438,-232.44037114,0.00036164,14]
[377572904,1754445090448,-1925.3,0.00036164,14]
[377572905,1754445090458,-400.0,0.00036164,14]
[377572906,1754445090467,-400.0,0.00036164,14]
[377572907,1754445090476,-449.51,0.00036164,14]
[377572908,1754445090486,-802.3,0.00036164,14]
[377572909,1754445090496,-400.0,0.00036164,14]
[377572910,1754445090505,-1899.36,0.00036164,14]
[377572911,1754445090514,-400.0,0.00036164,14]
[377572912,1754445090523,-723.29,0.00036164,14]
[377572913,1754445090532,-400.0,0.00036164,14]
[377572914,1754445090542,-693.92,0.00036164,14]
[377572915,1754445090551,-400.0,0.00036164,14]
[377572916,1754445090561,-827.55,0.00036164,14]
[377572917,1754445090571,-1605.43,0.00036164,14]
[377572918,1754445090581,-400.0,0.00036164,14]
[377572919,1754445090590,-1841.43,0.00036164,14]
[377572920,1754445090600,-400.0,0.00036164,14]
[377572921,1754445090609,-400.0,0.00036164,14]
[377572922,1754445090619,-400.0,0.00036164,14]
[377572923,1754445090628,-400.0,0.00036164,14]
[377572924,1754445090637,-400.0,0.00036164,14]
[377572925,1754445090646,-400.0,0.00036164,14]
[377572926,1754445090656,-2206.71,0.00036164,14]
[377572927,1754445090666,-2337.97,0.00036164,14]
[377572928,1754445090676,-400.0,0.00036164,14]
[377572929,1754445090685,-1457.88,0.00036164,14]
[377572930,1754445090695,-296.52136225,0.00036164,14]
[377572931,1754445090705,-1789.45,0.00036164,14]
[377572932,1754445090714,-2047.12,0.00036164,14]
[377572933,1754445090724,-2197.84,0.00036164,14]
[377572934,1754445090734,-400.0,0.00036164,14]
[377572935,1754445090744,-400.0,0.00036164,14]
[377572936,1754445090755,-677.89,0.00036164,14]
[377572937,1754445090764,-2021.48,0.00036164,14]
[377572938,1754445090774,-400.66688267,0.00036164,14]
[377572939,1754445090783,-400.0,0.00036164,14]
[377572940,1754445090793,-565.33,0.00036164,14]
[377572941,1754445090805,-1499.56,0.00036164,14]
[377572942,1754445090815,-400.0,0.00036164,2]
[377572943,1754445090824,-426.85,0.00036164,14]
[377572944,1754445090835,-400.0,0.00036164,14]
[377572945,1754445090845,-400.0,0.00036164,14]
[377572946,1754445090854,-1904.85,0.00036164,14]
[377572947,1754445090863,-400.0,0.00036164,14]
[377572948,1754445090872,-1056.9,0.00036164,14]
[377572949,1754445090882,-400.0,0.00036164,14]
[377572950,1754445090892,-400.0,0.00036164,14]
[377572951,1754445090901,-461.52,0.00036164,14]
[377572952,1754445090910,-151.0,0.00036164,7]
[377572953,1754445090920,-400.0,0.00036164,14]
[377572954,1754445090930,-400.0,0.00036164,14]
[377572955,1754445090941,-400.0,0.00036164,14]
[377572956,1754445090950,-1030.82,0.00036164,14]
[377572957,1754445090959,-400.0,0.00036164,14]
[377572958,1754445090968,-1475.54,0.00036164,14]
[377572959,1754445090978,-400.0,0.00036164,14]
[377572960,1754445090988,-422.51,0.00036164,14]
[377572961,1754445090997,-912.69,0.00036164,14]
[377572962,1754445091006,-400.0,0.00036164,14]
[377572963,1754445091015,-400.0,0.00036164,14]
[377572964,1754445091024,-451.74,0.00036164,14]
[377572965,1754445091034,-981.32,0.00036164,14]
[377572966,1754445091043,-910.24,0.00036164,14]
[377572967,1754445091052,-400.0,0.00036164,14]
[377572968,1754445091063,-1838.27,0.00036164,14]
[377572969,1754445091072,-1750.74,0.00036164,14]
[377572970,1754445091081,-1148.89,0.00036164,14]
[377572971,1754445091090,-489.78,0.00036164,14]
[377572972,1754445091099,-1112.24,0.00036164,14]
[377572973,1754445091109,-3267.86,0.00036164,14]
[377572974,1754445091118,-1269.87,0.00036164,14]
[377572975,1754445091127,-2011.52,0.00036164,14]
[377572976,1754445091137,-400.0,0.00036164,14]
[377572977,1754445091147,-1943.34,0.00036164,14]
[377572978,1754445091157,-400.0,0.00036164,14]
[377572979,1754445091165,-400.0,0.00036164,14]